[Event "*** SCC Grand Prix: Titled Tuesday Blitz"]
[Site "Chess.com"]
[Date "2020.09.08"]
[Round "9"]
[White "niki_2003"]
[Black "chessfrendz"]
[Result "0-1"]
[WhiteElo "1668"]
[BlackElo "2266"]
[TimeControl "180+1"]
[EndTime "11:45:37 PDT"]
[Termination "chessfrendz won by checkmate"]

1. d4 {[%clk 0:03:00.9]} 1... c5 {[%clk 0:02:56.3]} 2. d5 {[%clk 0:03:00.5]}
2... g6 {[%clk 0:02:55.7]} 3. c4 {[%clk 0:03:00.1]} 3... Bg7 {[%clk 0:02:55.6]}
4. Nf3 {[%clk 0:02:57.9]} 4... f5 {[%clk 0:02:54.9]} 5. g3 {[%clk 0:02:57.8]}
5... Nf6 {[%clk 0:02:54.7]} 6. Bg2 {[%clk 0:02:58.3]} 6... O-O {[%clk
0:02:54.6]} 7. Nc3 {[%clk 0:02:58.9]} 7... d6 {[%clk 0:02:53.5]} 8. Nd2 {[%clk
0:02:56.9]} 8... h6 {[%clk 0:02:52.5]} 9. O-O {[%clk 0:02:56.9]} 9... Nbd7
{[%clk 0:02:51.7]} 10. e4 {[%clk 0:02:57.2]} 10... fxe4 {[%clk 0:02:51]} 11.
Ndxe4 {[%clk 0:02:56.5]} 11... Nxe4 {[%clk 0:02:50.6]} 12. Bxe4 {[%clk
0:02:56.1]} 12... g5 {[%clk 0:02:48.1]} 13. Bc2 {[%clk 0:02:43.6]} 13... Nf6
{[%clk 0:02:46.6]} 14. Rb1 {[%clk 0:02:27.3]} 14... Bh3 {[%clk 0:02:45.2]} 15.
Re1 {[%clk 0:02:25.8]} 15... Qd7 {[%clk 0:02:36.4]} 16. Qe2 {[%clk 0:02:18]}
16... Ng4 {[%clk 0:02:19.4]} 17. Qe4 {[%clk 0:02:02.3]} 17... Rxf2 {[%clk
0:02:15.6]} 18. Qh7+ {[%clk 0:02:01.2]} 18... Kf8 {[%clk 0:02:14.7]} 19. Ne4
{[%clk 0:01:49.3]} 19... Rxc2 {[%clk 0:02:09.9]} 20. Rf1+ {[%clk 0:00:54.7]}
20... Bxf1 {[%clk 0:02:06.7]} 21. Nxc5 {[%clk 0:00:40.7]} 21... dxc5 {[%clk
0:02:00.8]} 22. Qxc2 {[%clk 0:00:38.1]} 22... Bh3 {[%clk 0:01:54.1]} 23. b4
{[%clk 0:00:27.8]} 23... Bd4+ {[%clk 0:01:50.6]} 24. Kh1 {[%clk 0:00:26.3]}
24... Nf2+ {[%clk 0:01:49]} 25. Kg1 {[%clk 0:00:26.4]} 25... Qg4 {[%clk
0:01:41]} 26. Bb2 {[%clk 0:00:21.8]} 26... Nd3+ {[%clk 0:01:36.9]} 27. Bxd4
{[%clk 0:00:19.9]} 27... Qxd4+ {[%clk 0:01:35.9]} 28. Kh1 {[%clk 0:00:19.7]}
28... Qe4+ {[%clk 0:01:34.4]} 29. Kg1 {[%clk 0:00:19.6]} 29... Qe3+ {[%clk
0:01:32.6]} 30. Kh1 {[%clk 0:00:19.2]} 30... Nf2+ {[%clk 0:01:29.8]} 31. Kg1
{[%clk 0:00:13.1]} 31... Nd1+ {[%clk 0:01:29.2]} 32. Kh1 {[%clk 0:00:12.9]}
32... Qe1# {[%clk 0:01:29.1]} 0-1

[Event "*** SCC Grand Prix: Titled Tuesday Blitz"]
[Site "Chess.com"]
[Date "2020.09.08"]
[Round "9"]
[White "Mambastik-Fantastic"]
[Black "picturesquecheck"]
[Result "1-0"]
[WhiteElo "2301"]
[BlackElo "2151"]
[TimeControl "180+1"]
[EndTime "11:45:48 PDT"]
[Termination "Mambastik-Fantastic won by resignation"]

1. e4 {[%clk 0:03:00.9]} 1... c5 {[%clk 0:02:59.8]} 2. Nf3 {[%clk 0:03:00.6]}
2... Nc6 {[%clk 0:02:59.7]} 3. d4 {[%clk 0:03:00.6]} 3... cxd4 {[%clk
0:03:00.6]} 4. Nxd4 {[%clk 0:03:00.4]} 4... Nf6 {[%clk 0:03:00.5]} 5. Nc3 {[%clk
0:03:00]} 5... d6 {[%clk 0:03:00.9]} 6. Be2 {[%clk 0:02:59.6]} 6... e5 {[%clk
0:02:59.3]} 7. Nf3 {[%clk 0:02:58.6]} 7... h6 {[%clk 0:02:56.8]} 8. h3 {[%clk
0:02:57.6]} 8... Be7 {[%clk 0:02:57.3]} 9. O-O {[%clk 0:02:57.9]} 9... O-O
{[%clk 0:02:56.2]} 10. Re1 {[%clk 0:02:58.5]} 10... Be6 {[%clk 0:02:54.4]} 11.
Bf1 {[%clk 0:02:58.8]} 11... Rc8 {[%clk 0:02:50]} 12. a4 {[%clk 0:02:58.9]}
12... Re8 {[%clk 0:02:33.2]} 13. Nd5 {[%clk 0:02:58.2]} 13... Bxd5 {[%clk
0:02:29.8]} 14. exd5 {[%clk 0:02:58.5]} 14... Nb4 {[%clk 0:02:29.8]} 15. c4
{[%clk 0:02:58.2]} 15... a5 {[%clk 0:02:29.1]} 16. b3 {[%clk 0:02:57]} 16... Nd7
{[%clk 0:02:28]} 17. Bb2 {[%clk 0:02:53.1]} 17... f5 {[%clk 0:02:24.7]} 18. Rc1
{[%clk 0:02:38.3]} 18... Bf6 {[%clk 0:02:23.2]} 19. Qd2 {[%clk 0:02:28.6]} 19...
Nc5 {[%clk 0:02:21]} 20. Qd1 {[%clk 0:02:14.4]} 20... e4 {[%clk 0:02:12.3]} 21.
Bxf6 {[%clk 0:02:12.4]} 21... Qxf6 {[%clk 0:02:12.9]} 22. Nd4 {[%clk 0:02:10.5]}
22... Ncd3 {[%clk 0:02:12.6]} 23. Ne6 {[%clk 0:02:02.1]} 23... Nxc1 {[%clk
0:02:04.8]} 24. Qxc1 {[%clk 0:02:01.5]} 24... Kh8 {[%clk 0:01:58.1]} 25. Qf4
{[%clk 0:01:56.3]} 25... g5 {[%clk 0:01:53]} 26. Qxd6 {[%clk 0:01:54.3]} 26...
Nc2 {[%clk 0:01:19.9]} 27. Rd1 {[%clk 0:01:44.7]} 27... f4 {[%clk 0:01:12.2]}
28. Qd7 {[%clk 0:01:21.3]} 28... e3 {[%clk 0:01:05.1]} 29. fxe3 {[%clk
0:01:20.6]} 29... Nxe3 {[%clk 0:01:03.5]} 30. Re1 {[%clk 0:01:04.3]} 30... Nc2
{[%clk 0:00:37.9]} 31. Bd3 {[%clk 0:00:59.5]} 31... Qe7 {[%clk 0:00:23.8]} 32.
Qxe7 {[%clk 0:00:59.1]} 32... Rxe7 {[%clk 0:00:24.7]} 33. Bxc2 {[%clk
0:00:59.5]} 1-0

[Event "*** SCC Grand Prix: Titled Tuesday Blitz"]
[Site "Chess.com"]
[Date "2020.09.08"]
[Round "9"]
[White "AldokhinIvan"]
[Black "enriquebutti"]
[Result "1-0"]
[WhiteElo "2575"]
[BlackElo "1873"]
[TimeControl "180+1"]
[EndTime "11:45:52 PDT"]
[Termination "AldokhinIvan won by resignation"]

1. e4 {[%clk 0:03:00.9]} 1... c5 {[%clk 0:02:58.9]} 2. Nf3 {[%clk 0:03:01.3]}
2... d6 {[%clk 0:02:58.7]} 3. d4 {[%clk 0:03:01.9]} 3... cxd4 {[%clk 0:02:58.5]}
4. Nxd4 {[%clk 0:03:02.8]} 4... Nf6 {[%clk 0:02:58.5]} 5. Nc3 {[%clk 0:03:03.3]}
5... a6 {[%clk 0:02:58.4]} 6. Bc4 {[%clk 0:03:03.1]} 6... e6 {[%clk 0:02:58.1]}
7. Bb3 {[%clk 0:03:03.4]} 7... b5 {[%clk 0:02:57.9]} 8. O-O {[%clk 0:03:00.5]}
8... Bb7 {[%clk 0:02:57.4]} 9. Re1 {[%clk 0:03:00.6]} 9... Nbd7 {[%clk
0:02:49.6]} 10. Qf3 {[%clk 0:02:45.6]} 10... Nc5 {[%clk 0:02:32.1]} 11. Bd5
{[%clk 0:02:23.9]} 11... exd5 {[%clk 0:02:23.4]} 12. exd5+ {[%clk 0:02:23.3]}
12... Kd7 {[%clk 0:02:23.2]} 13. b4 {[%clk 0:02:17.2]} 13... Na4 {[%clk
0:02:13.5]} 14. Nxa4 {[%clk 0:02:06.8]} 14... bxa4 {[%clk 0:02:09.9]} 15. c4
{[%clk 0:01:59.3]} 15... Rc8 {[%clk 0:01:57.4]} 16. Qh3+ {[%clk 0:01:03.3]}
16... Kc7 {[%clk 0:01:54.4]} 17. Bf4 {[%clk 0:01:00.2]} 17... Kb8 {[%clk
0:01:39.4]} 18. Qd3 {[%clk 0:00:59.6]} 18... Ka8 {[%clk 0:01:22.2]} 19. b5
{[%clk 0:00:58.7]} 19... axb5 {[%clk 0:01:17.9]} 20. Nxb5 {[%clk 0:00:56.7]}
20... Qb6 {[%clk 0:01:10.7]} 21. Rab1 {[%clk 0:00:53.1]} 21... Qc5 {[%clk
0:01:01.4]} 22. Rec1 {[%clk 0:00:38.1]} 22... Ne4 {[%clk 0:00:39.8]} 23. Qxe4
{[%clk 0:00:32.7]} 23... Ba6 {[%clk 0:00:37.6]} 24. Be3 {[%clk 0:00:29.9]} 1-0

[Event "*** SCC Grand Prix: Titled Tuesday Blitz"]
[Site "Chess.com"]
[Date "2020.09.08"]
[Round "9"]
[White "seorobert1971"]
[Black "Susal_De_Silva"]
[Result "1-0"]
[WhiteElo "2691"]
[BlackElo "2515"]
[TimeControl "180+1"]
[EndTime "11:45:53 PDT"]
[Termination "seorobert1971 won by resignation"]

1. c4 {[%clk 0:03:00.9]} 1... e5 {[%clk 0:02:58.1]} 2. Nc3 {[%clk 0:03:01.1]}
2... Nf6 {[%clk 0:02:57.7]} 3. Nf3 {[%clk 0:03:01.3]} 3... Nc6 {[%clk
0:02:56.6]} 4. e3 {[%clk 0:03:01.5]} 4... d5 {[%clk 0:02:53.9]} 5. cxd5 {[%clk
0:03:01.2]} 5... Nxd5 {[%clk 0:02:54.8]} 6. Bb5 {[%clk 0:03:01]} 6... Nxc3
{[%clk 0:02:55.2]} 7. bxc3 {[%clk 0:03:00.5]} 7... Bd6 {[%clk 0:02:55]} 8. d4
{[%clk 0:03:00]} 8... exd4 {[%clk 0:02:54.3]} 9. cxd4 {[%clk 0:02:59.5]} 9...
O-O {[%clk 0:02:54]} 10. O-O {[%clk 0:02:59.2]} 10... Ne7 {[%clk 0:02:53.8]} 11.
e4 {[%clk 0:02:55.2]} 11... c6 {[%clk 0:02:51.1]} 12. Bc4 {[%clk 0:02:53.5]}
12... Ng6 {[%clk 0:02:50.4]} 13. h3 {[%clk 0:02:50.6]} 13... a5 {[%clk
0:02:45.2]} 14. a3 {[%clk 0:02:44.2]} 14... Bc7 {[%clk 0:02:40.1]} 15. Be3
{[%clk 0:02:42.1]} 15... Qe7 {[%clk 0:02:35.1]} 16. Qc2 {[%clk 0:02:40.4]} 16...
Qd7 {[%clk 0:02:32.5]} 17. Rfd1 {[%clk 0:02:37.4]} 17... Qe7 {[%clk 0:02:27.8]}
18. Be2 {[%clk 0:02:24.5]} 18... Re8 {[%clk 0:02:24.7]} 19. Bd3 {[%clk
0:02:22.8]} 19... Bf4 {[%clk 0:02:20.2]} 20. e5 {[%clk 0:02:19.1]} 20... Bxe3
{[%clk 0:02:16.2]} 21. fxe3 {[%clk 0:02:18.8]} 21... Be6 {[%clk 0:02:12.5]} 22.
Nd2 {[%clk 0:02:12]} 22... c5 {[%clk 0:02:09]} 23. Ne4 {[%clk 0:02:02]} 23...
cxd4 {[%clk 0:01:44.4]} 24. exd4 {[%clk 0:02:00.8]} 24... a4 {[%clk 0:01:44.9]}
25. Qf2 {[%clk 0:01:58.3]} 25... Red8 {[%clk 0:01:38.5]} 26. Nd6 {[%clk
0:01:54.9]} 26... f6 {[%clk 0:01:33.7]} 27. Bxg6 {[%clk 0:01:38]} 27... hxg6
{[%clk 0:01:34.6]} 28. Qg3 {[%clk 0:01:37.1]} 28... Bf7 {[%clk 0:01:25.9]} 29.
Rab1 {[%clk 0:01:32.9]} 29... Rd7 {[%clk 0:01:10.4]} 30. Re1 {[%clk 0:01:27.8]}
30... Ra5 {[%clk 0:00:57.8]} 31. Nxf7 {[%clk 0:01:21.6]} 31... Rxd4 {[%clk
0:00:48.7]} 32. e6 {[%clk 0:01:09.9]} 32... Rd2 {[%clk 0:00:38.2]} 33. Qb8+
{[%clk 0:01:07.5]} 33... Qf8 {[%clk 0:00:35.9]} 34. Rxb7 {[%clk 0:01:01.6]}
34... Re5 {[%clk 0:00:27.5]} 1-0

[Event "*** SCC Grand Prix: Titled Tuesday Blitz"]
[Site "Chess.com"]
[Date "2020.09.08"]
[Round "9"]
[White "Hikaru"]
[Black "Izoria123"]
[Result "1-0"]
[WhiteElo "3198"]
[BlackElo "2878"]
[TimeControl "180+1"]
[EndTime "11:45:55 PDT"]
[Termination "Hikaru won by resignation"]

1. Nf3 {[%clk 0:03:00.9]} 1... d5 {[%clk 0:02:58.5]} 2. e3 {[%clk 0:02:59.4]}
2... Nf6 {[%clk 0:02:57.1]} 3. b3 {[%clk 0:02:58.4]} 3... g6 {[%clk 0:02:53.3]}
4. Bb2 {[%clk 0:02:58.4]} 4... Bg7 {[%clk 0:02:53.8]} 5. c4 {[%clk 0:02:58.7]}
5... dxc4 {[%clk 0:02:52.7]} 6. Bxc4 {[%clk 0:02:58.3]} 6... O-O {[%clk
0:02:52.8]} 7. d4 {[%clk 0:02:58.9]} 7... c5 {[%clk 0:02:52.2]} 8. O-O {[%clk
0:02:56.8]} 8... cxd4 {[%clk 0:02:51.9]} 9. Nxd4 {[%clk 0:02:57]} 9... Bd7
{[%clk 0:02:52.2]} 10. Nd2 {[%clk 0:02:55.4]} 10... Nc6 {[%clk 0:02:52.7]} 11.
N2f3 {[%clk 0:02:55.9]} 11... Nxd4 {[%clk 0:02:52.2]} 12. Bxd4 {[%clk
0:02:56.8]} 12... Bc6 {[%clk 0:02:50.4]} 13. Qe2 {[%clk 0:02:57.2]} 13... Bd5
{[%clk 0:02:12.2]} 14. Rfd1 {[%clk 0:02:48.9]} 14... Bxc4 {[%clk 0:02:11.5]} 15.
Qxc4 {[%clk 0:02:49.8]} 15... Qa5 {[%clk 0:02:07.2]} 16. Rac1 {[%clk 0:02:49.9]}
16... Rfd8 {[%clk 0:01:37.5]} 17. h3 {[%clk 0:02:42.7]} 17... Qd5 {[%clk
0:01:27.1]} 18. Qc2 {[%clk 0:02:30.3]} 18... Qe4 {[%clk 0:01:23.2]} 19. Qc4
{[%clk 0:02:17.6]} 19... Qd5 {[%clk 0:01:14.7]} 20. Qb4 {[%clk 0:02:17.8]} 20...
Qd6 {[%clk 0:01:07.7]} 21. Qxd6 {[%clk 0:02:11.6]} 21... Rxd6 {[%clk 0:01:07.1]}
22. Rc7 {[%clk 0:02:10.8]} 22... Ra6 {[%clk 0:01:03.3]} 23. Rxe7 {[%clk
0:02:03.1]} 23... Rxa2 {[%clk 0:01:02.4]} 24. Rxb7 {[%clk 0:01:53.3]} 24... Ne4
{[%clk 0:00:57.6]} 25. Bxg7 {[%clk 0:01:48]} 25... Kxg7 {[%clk 0:00:58.5]} 26.
Rd4 {[%clk 0:01:20.2]} 26... Re8 {[%clk 0:00:45.2]} 27. Rdd7 {[%clk 0:01:15.5]}
27... Rf8 {[%clk 0:00:38.7]} 28. Ne5 {[%clk 0:00:55.9]} 28... Rxf2 {[%clk
0:00:38.2]} 29. Rb4 {[%clk 0:00:53.1]} 29... Rf5 {[%clk 0:00:13.6]} 30. Rxe4
{[%clk 0:00:52.8]} 30... Re8 {[%clk 0:00:13.9]} 31. Nxf7 {[%clk 0:00:46.9]} 1-0

[Event "*** SCC Grand Prix: Titled Tuesday Blitz"]
[Site "Chess.com"]
[Date "2020.09.08"]
[Round "9"]
[White "Cambek64"]
[Black "MYMChessAcademy"]
[Result "0-1"]
[WhiteElo "2243"]
[BlackElo "2082"]
[TimeControl "180+1"]
[EndTime "11:45:55 PDT"]
[Termination "MYMChessAcademy won by checkmate"]

1. e4 {[%clk 0:03:00.8]} 1... c5 {[%clk 0:02:58.7]} 2. Nc3 {[%clk 0:02:56.4]}
2... d6 {[%clk 0:02:55.9]} 3. Bc4 {[%clk 0:02:54.3]} 3... e6 {[%clk 0:02:55.7]}
4. d3 {[%clk 0:02:53.7]} 4... a6 {[%clk 0:02:55.6]} 5. f4 {[%clk 0:02:54]} 5...
b5 {[%clk 0:02:55]} 6. Bb3 {[%clk 0:02:54.2]} 6... Bb7 {[%clk 0:02:55.5]} 7. Nf3
{[%clk 0:02:54.2]} 7... Nd7 {[%clk 0:02:55.6]} 8. O-O {[%clk 0:02:54.1]} 8...
Ngf6 {[%clk 0:02:55.6]} 9. a3 {[%clk 0:02:53.4]} 9... Be7 {[%clk 0:02:53.7]} 10.
h3 {[%clk 0:02:52.3]} 10... O-O {[%clk 0:02:52.3]} 11. g4 {[%clk 0:02:52.7]}
11... h6 {[%clk 0:02:51.9]} 12. f5 {[%clk 0:02:52.8]} 12... d5 {[%clk
0:02:48.8]} 13. Qe1 {[%clk 0:02:49.3]} 13... dxe4 {[%clk 0:02:47.7]} 14. Nxe4
{[%clk 0:02:45]} 14... Nxe4 {[%clk 0:02:47.3]} 15. dxe4 {[%clk 0:02:45]} 15...
c4 {[%clk 0:02:47.4]} 16. Ba2 {[%clk 0:02:43.8]} 16... exf5 {[%clk 0:02:40.6]}
17. exf5 {[%clk 0:02:38.2]} 17... Re8 {[%clk 0:02:40.5]} 18. Qg3 {[%clk
0:02:33.1]} 18... Bc5+ {[%clk 0:02:39.3]} 19. Kh1 {[%clk 0:02:32.1]} 19... Nf6
{[%clk 0:02:33.8]} 20. Bf4 {[%clk 0:02:27.1]} 20... Ne4 {[%clk 0:02:32.4]} 21.
Qg2 {[%clk 0:02:26.9]} 21... c3 {[%clk 0:02:07]} 22. b4 {[%clk 0:02:25.4]} 22...
Bd6 {[%clk 0:02:04.8]} 23. Rad1 {[%clk 0:02:24.5]} 23... Qe7 {[%clk 0:01:59.8]}
24. Bxd6 {[%clk 0:02:22]} 24... Nxd6 {[%clk 0:02:00.7]} 25. Rfe1 {[%clk
0:02:21.4]} 25... Bxf3 {[%clk 0:01:57.8]} 26. Qxf3 {[%clk 0:02:19.5]} 26...
Qxe1+ {[%clk 0:01:55.6]} 27. Rxe1 {[%clk 0:02:19.8]} 27... Rxe1+ {[%clk
0:01:56.5]} 28. Kg2 {[%clk 0:02:19.7]} 28... Rae8 {[%clk 0:01:55.1]} 29. Qd5
{[%clk 0:02:18.7]} 29... R8e2+ {[%clk 0:01:50.5]} 30. Kg3 {[%clk 0:02:19]} 30...
Ne4+ {[%clk 0:01:46.8]} 31. Kh4 {[%clk 0:02:16.7]} 31... Ng5 {[%clk 0:01:23.7]}
32. Kh5 {[%clk 0:02:01.9]} 32... Rh2 {[%clk 0:01:11.7]} 33. h4 {[%clk
0:01:57.7]} 33... Reh1 {[%clk 0:01:06.1]} 34. Qxf7+ {[%clk 0:01:44.9]} 34...
Nxf7 {[%clk 0:01:05.9]} 35. Kg6 {[%clk 0:01:45.2]} 35... Rxh4 {[%clk 0:01:03.8]}
36. Bxf7+ {[%clk 0:01:38.3]} 36... Kf8 {[%clk 0:01:03.3]} 37. Be6 {[%clk
0:01:22.5]} 37... Rxg4+ {[%clk 0:01:02.6]} 38. Kh7 {[%clk 0:01:22.9]} 38... h5
{[%clk 0:01:01.9]} 39. f6 {[%clk 0:01:20.4]} 39... gxf6 {[%clk 0:01:01.5]} 40.
a4 {[%clk 0:01:18.4]} 40... Rxb4 {[%clk 0:00:57.8]} 41. axb5 {[%clk 0:01:12.8]}
41... axb5 {[%clk 0:00:58.7]} 42. Kh8 {[%clk 0:01:07.4]} 42... h4 {[%clk
0:00:58.5]} 43. Bd5 {[%clk 0:01:04.5]} 43... Rg1 {[%clk 0:00:57.6]} 44. Bf3
{[%clk 0:00:57.5]} 44... h3 {[%clk 0:00:57.3]} 45. Bh5 {[%clk 0:00:55.9]} 45...
Rh4 {[%clk 0:00:57.2]} 46. Kh7 {[%clk 0:00:54.7]} 46... Rxh5# {[%clk 0:00:58.1]}
0-1

[Event "*** SCC Grand Prix: Titled Tuesday Blitz"]
[Site "Chess.com"]
[Date "2020.09.08"]
[Round "9"]
[White "IveBeenThroughPain"]
[Black "dpopadic"]
[Result "1-0"]
[WhiteElo "2480"]
[BlackElo "2357"]
[TimeControl "180+1"]
[EndTime "11:45:56 PDT"]
[Termination "IveBeenThroughPain won by resignation"]

1. e4 {[%clk 0:03:00.9]} 1... c5 {[%clk 0:02:59.3]} 2. d4 {[%clk 0:03:00.8]}
2... cxd4 {[%clk 0:02:58.6]} 3. c3 {[%clk 0:03:01.4]} 3... d3 {[%clk 0:02:58.7]}
4. Bxd3 {[%clk 0:03:01.1]} 4... Nc6 {[%clk 0:02:58.8]} 5. c4 {[%clk 0:03:01.2]}
5... d6 {[%clk 0:02:58.9]} 6. h3 {[%clk 0:03:00.5]} 6... Nf6 {[%clk 0:02:58.8]}
7. Nf3 {[%clk 0:03:00.9]} 7... e6 {[%clk 0:02:57.9]} 8. O-O {[%clk 0:03:00.9]}
8... Be7 {[%clk 0:02:58.1]} 9. Nc3 {[%clk 0:03:00.4]} 9... O-O {[%clk
0:02:57.4]} 10. Be3 {[%clk 0:03:00.7]} 10... Bd7 {[%clk 0:02:55.5]} 11. Rc1
{[%clk 0:03:00.8]} 11... Rc8 {[%clk 0:02:53.8]} 12. b3 {[%clk 0:03:01.2]} 12...
a6 {[%clk 0:02:50.1]} 13. Bb1 {[%clk 0:03:01.3]} 13... Ne5 {[%clk 0:02:44.6]}
14. Nd4 {[%clk 0:02:59.8]} 14... Qc7 {[%clk 0:02:39.8]} 15. f4 {[%clk
0:02:59.1]} 15... Nc6 {[%clk 0:02:39.7]} 16. Nd5 {[%clk 0:02:59.2]} 16... exd5
{[%clk 0:02:36.8]} 17. cxd5 {[%clk 0:02:59.5]} 17... Qb8 {[%clk 0:02:25.1]} 18.
dxc6 {[%clk 0:02:58.2]} 18... bxc6 {[%clk 0:02:25.2]} 19. g4 {[%clk 0:02:40.3]}
19... c5 {[%clk 0:02:23.8]} 20. Nf5 {[%clk 0:02:22.1]} 20... Bxf5 {[%clk
0:02:23.4]} 21. gxf5 {[%clk 0:02:21.6]} 21... Qb7 {[%clk 0:02:20.6]} 22. Qd3
{[%clk 0:02:17.1]} 22... Rfe8 {[%clk 0:02:05.8]} 23. e5 {[%clk 0:02:17]} 23...
Nd5 {[%clk 0:01:57.7]} 24. f6 {[%clk 0:02:15.1]} 24... Bxf6 {[%clk 0:01:46.1]}
25. Qxh7+ {[%clk 0:01:57.1]} 25... Kf8 {[%clk 0:01:42.5]} 26. exf6 {[%clk
0:01:58]} 26... Nxf6 {[%clk 0:01:36.8]} 27. Qh8+ {[%clk 0:01:55.9]} 27... Ng8
{[%clk 0:01:36.5]} 28. Rce1 {[%clk 0:01:40.1]} 28... Re6 {[%clk 0:01:22.9]} 29.
Bh7 {[%clk 0:01:32.6]} 29... Ke7 {[%clk 0:01:19.4]} 30. f5 {[%clk 0:01:26.5]}
30... Nf6 {[%clk 0:01:05.5]} 31. Qxg7 {[%clk 0:01:19.5]} 31... Re5 {[%clk
0:00:37]} 32. Bg5 {[%clk 0:01:15.6]} 32... Rxe1 {[%clk 0:00:35.9]} 33. Rxe1+
{[%clk 0:01:09.8]} 33... Kd7 {[%clk 0:00:36]} 34. Qxf7+ {[%clk 0:00:49.1]} 34...
Kc6 {[%clk 0:00:35.6]} 35. Qxb7+ {[%clk 0:00:49.4]} 35... Kxb7 {[%clk
0:00:35.4]} 36. Bxf6 {[%clk 0:00:50.1]} 1-0

[Event "*** SCC Grand Prix: Titled Tuesday Blitz"]
[Site "Chess.com"]
[Date "2020.09.08"]
[Round "9"]
[White "woodpusher52"]
[Black "KatarinaOstojic"]
[Result "0-1"]
[WhiteElo "2440"]
[BlackElo "2347"]
[TimeControl "180+1"]
[EndTime "11:46:06 PDT"]
[Termination "KatarinaOstojic won by resignation"]

1. d4 {[%clk 0:02:59.3]} 1... f5 {[%clk 0:02:58.4]} 2. h3 {[%clk 0:02:56.5]}
2... Nf6 {[%clk 0:02:58.3]} 3. g4 {[%clk 0:02:56.7]} 3... d6 {[%clk 0:02:57.4]}
4. Bg2 {[%clk 0:02:53.7]} 4... g6 {[%clk 0:02:56.7]} 5. Nc3 {[%clk 0:02:51.1]}
5... c6 {[%clk 0:02:55.5]} 6. e4 {[%clk 0:02:47.3]} 6... fxg4 {[%clk 0:02:54.4]}
7. hxg4 {[%clk 0:02:47.1]} 7... Bxg4 {[%clk 0:02:55.3]} 8. f3 {[%clk 0:02:46.9]}
8... Bd7 {[%clk 0:02:55.2]} 9. Nge2 {[%clk 0:02:45]} 9... e5 {[%clk 0:02:55.2]}
10. O-O {[%clk 0:02:43.9]} 10... Bg7 {[%clk 0:02:54.5]} 11. f4 {[%clk
0:02:39.9]} 11... O-O {[%clk 0:02:50.5]} 12. Ng3 {[%clk 0:02:27.4]} 12... Ng4
{[%clk 0:02:47]} 13. f5 {[%clk 0:02:24.6]} 13... Qh4 {[%clk 0:02:45.9]} 14. Rf3
{[%clk 0:02:18.1]} 14... exd4 {[%clk 0:02:41.3]} 15. Nce2 {[%clk 0:02:15.4]}
15... Qh2+ {[%clk 0:02:18.4]} 16. Kf1 {[%clk 0:02:15.2]} 16... Bh6 {[%clk
0:02:19.3]} 17. Bxh6 {[%clk 0:01:53.7]} 17... Qxh6 {[%clk 0:02:20.2]} 18. Qxd4
{[%clk 0:01:52.6]} 18... Nh2+ {[%clk 0:02:17.8]} 19. Kf2 {[%clk 0:01:48.1]}
19... Nxf3 {[%clk 0:02:17.3]} 20. Bxf3 {[%clk 0:01:47.8]} 20... Qh2+ {[%clk
0:02:04.6]} 21. Ke3 {[%clk 0:01:43.1]} 21... Qh6+ {[%clk 0:02:02.4]} 22. Kf2
{[%clk 0:01:42.3]} 22... d5 {[%clk 0:01:48.7]} 23. exd5 {[%clk 0:01:34.3]} 23...
Bxf5 {[%clk 0:01:47.4]} 24. Rh1 {[%clk 0:01:30.7]} 24... Qg7 {[%clk 0:01:46]}
25. Qh4 {[%clk 0:01:14.4]} 25... Bxc2 {[%clk 0:01:40.5]} 26. dxc6 {[%clk
0:01:08.4]} 26... Nxc6 {[%clk 0:01:32.9]} 27. Qc4+ {[%clk 0:01:08]} 27... Qf7
{[%clk 0:01:33.5]} 28. Qxc2 {[%clk 0:00:31.4]} 28... Qxf3+ {[%clk 0:01:31.6]}
29. Ke1 {[%clk 0:00:30.9]} 29... Rae8 {[%clk 0:01:25.8]} 30. Kd1 {[%clk
0:00:25.1]} 30... Qe3 {[%clk 0:01:02.3]} 31. Ke1 {[%clk 0:00:18.5]} 31... Qxg3+
{[%clk 0:01:01.5]} 32. Kd1 {[%clk 0:00:18.5]} 32... Qe3 {[%clk 0:00:55.9]} 33.
Ke1 {[%clk 0:00:17.4]} 33... Rf7 {[%clk 0:00:50.9]} 34. a3 {[%clk 0:00:15.3]}
34... Nd4 {[%clk 0:00:50.4]} 0-1

[Event "*** SCC Grand Prix: Titled Tuesday Blitz"]
[Site "Chess.com"]
[Date "2020.09.08"]
[Round "9"]
[White "zmeeed67"]
[Black "DonPreuss"]
[Result "0-1"]
[WhiteElo "2408"]
[BlackElo "2258"]
[TimeControl "180+1"]
[EndTime "11:46:07 PDT"]
[Termination "DonPreuss won by resignation"]

1. e4 {[%clk 0:03:00.9]} 1... e5 {[%clk 0:02:58.4]} 2. Nf3 {[%clk 0:03:00.4]}
2... d5 {[%clk 0:02:57.9]} 3. Nc3 {[%clk 0:02:59.4]} 3... dxe4 {[%clk
0:02:56.9]} 4. Nxe4 {[%clk 0:02:59.1]} 4... f5 {[%clk 0:02:57.3]} 5. Ng3 {[%clk
0:02:59]} 5... e4 {[%clk 0:02:57.3]} 6. Ne5 {[%clk 0:02:52.5]} 6... Qd4 {[%clk
0:02:57.1]} 7. Nc4 {[%clk 0:02:51.6]} 7... Bc5 {[%clk 0:02:49.3]} 8. Qe2 {[%clk
0:02:46.1]} 8... Nf6 {[%clk 0:02:38.5]} 9. c3 {[%clk 0:02:32.1]} 9... Qd8 {[%clk
0:02:25.6]} 10. b4 {[%clk 0:02:31.3]} 10... Bb6 {[%clk 0:02:10]} 11. d4 {[%clk
0:02:23.4]} 11... O-O {[%clk 0:02:06.7]} 12. a4 {[%clk 0:02:18.9]} 12... c6
{[%clk 0:02:05.1]} 13. Nxb6 {[%clk 0:02:15.9]} 13... axb6 {[%clk 0:02:04.7]} 14.
Bf4 {[%clk 0:02:10.4]} 14... Be6 {[%clk 0:02:02.3]} 15. Qb2 {[%clk 0:01:56.6]}
15... Nbd7 {[%clk 0:01:41.1]} 16. Be2 {[%clk 0:01:56.1]} 16... Kh8 {[%clk
0:01:37.4]} 17. O-O {[%clk 0:01:55.5]} 17... Nd5 {[%clk 0:01:34.9]} 18. Bd6
{[%clk 0:01:46.5]} 18... Qh4 {[%clk 0:01:20.9]} 19. c4 {[%clk 0:01:36.6]} 19...
N5f6 {[%clk 0:01:02.4]} 20. Bxf8 {[%clk 0:01:32.2]} 20... Rxf8 {[%clk
0:01:03.3]} 21. a5 {[%clk 0:01:20.9]} 21... f4 {[%clk 0:00:59.1]} 22. axb6
{[%clk 0:01:18]} 22... fxg3 {[%clk 0:00:49.8]} 23. fxg3 {[%clk 0:01:15.9]} 23...
Qg5 {[%clk 0:00:46.6]} 24. Ra7 {[%clk 0:01:09.2]} 24... Nxb6 {[%clk 0:00:42.9]}
25. Rxb7 {[%clk 0:01:07.8]} 25... Nxc4 {[%clk 0:00:42.8]} 26. Qc3 {[%clk
0:00:58.1]} 26... Ne3 {[%clk 0:00:41]} 27. Rf4 {[%clk 0:00:57.2]} 27... Ned5
{[%clk 0:00:40.1]} 28. Qxc6 {[%clk 0:00:52.4]} 28... Nxf4 {[%clk 0:00:38.2]} 29.
gxf4 {[%clk 0:00:52.4]} 29... Qxf4 {[%clk 0:00:37.8]} 30. Qxe6 {[%clk
0:00:46.4]} 30... Qe3+ {[%clk 0:00:29.1]} 31. Kh1 {[%clk 0:00:42.9]} 31... Qc1+
{[%clk 0:00:26.6]} 0-1